{"text_format":"1","workbook":"xlsx","n_sheets":1,"sheets":["price bid "],"not_rendered":{"charts":0,"images":1,"macros":1,"external_links":0,"defined_names":0,"comments":0,"pivot_tables":0},"unopened":[],"bounds":{"document_bytes":16777216,"sheet_cells":100000,"rows_first":2000,"rows_last":500,"rows_between":2000,"halvings":0,"cell_chars":16384,"cell_head_chars":4096},"cells_cut":0,"cells_raw":0,"read":"whole","date_system":"1900"}

{"sheet":"price bid ","index":0,"n_rows":41,"n_cols":7,"rows_kept":41,"cut":false,"hidden":false,"merged":[[0,0,0,6],[2,0,2,6],[37,1,37,6],[38,1,38,6],[3,0,3,6],[1,0,1,6],[4,0,4,6],[6,0,6,6],[24,0,24,5],[34,1,34,6],[33,0,33,5],[25,0,25,6],[32,0,32,5]]}
["    BHARAT HEAVY ELECTRICAL LIMITED , JHANSI              "]
["FACTORY CIVIL  DEPARTMENT"]
["PRICE BID  (JS-146)"]
["Name of work - Annual contract for white wash, distempering, snowcem in factory area."]
["Tender No-FCX/TW/21/14"]
["Sl.no.","Descripition of work","Unit","% Allocation (Item-wise)","Qty.","Rate","Amount (Rs.)"]
["Section \"A\""]
[1,"Providing  and  applying  plaster  of  paris  putty  of  2  mm  thickness  over plastered surface to prepare the surface even and smooth complete.\n","Sqm",24.359877330459245,2500,{"$f":"ROUND(G8/E8,2)","v":0},{"$f":"ROUND($G$34*D8%,2)","v":0}]
[2,"White washing with lime to give an even shade: New work (three or more coats) ","Sqm",0.4236970805923061,300,{"$f":"ROUND(G9/E9,2)","v":0},{"$f":"ROUND($G$34*D9%,2)","v":0}]
[3,"Colour washing such as green, blue or buff to give an even shade : New  work  (two  or  more  coats)  with  a  base  coat  of  white washing with lime","Sqm",0.58224018381924458,300,0,0]
[4,"Distempering with oil bound washable distemper of approved brand and manufacture to give an even shade  New  work  (two  or  more  coats)  over  and  including  priming coat with cement primer. ","Sqm",3.0563448414205165,400,0,0]
[5,"Finishing walls with water proofing cement paint of required shade : New w ork (Two or more coats applied @ 3.84 kg/10 sqm).","Sqm",0.93561237085419491,200,0,0]
[6,"Finishing walls with Premium Acrylic Smooth exterior paint with Silicone additives of required shade: New work (Two or more coats applied @ 1.43 ltr/10 sqm over and including priming coat of exterior primer applied @ 2.20 kg/10 sqm)","Sqm",3.7263871112788278,500,0,0]
[7,"Wall  painting  with  plastic  emulsion  paint  of  approved  brand  and manufacture to give an even shade:  Two or more coats on new work .                                                                             ","Sqm",5.3363694377487079,800,0,0]
[8,"Painting with synthetic enamel paint of approved brand and manufacture of requird colour to give an even shade two or more coats on new work over an under  coat of suitable shade with ordinary paint of approved brand and manufacture. ","Sqm",2.6879922036869583,300,0,0]
[9,"Painting  with  aluminium  paint  of  approved  brand  and manufacture  to give an even shade . Two or more coats on new work. ","Sqm",1.1073882055315705,200,0,0]
[10,"White washing -Old  work (two or more coats)","Sqm",0.25092254920168983,300,0,0]
[11,"White washing  -Old  work (one or more coats)","Sqm",1.0319866036819085,2000,0,0]
[12,"Removing white/colour wash by scraping and sand preparing and preparing the surface smooth including necessary repairs to scratches etc. complete.  ","Sqm",0.2087276130672763,300,0,0]
[13,"Distempering with oil bound washable distemper of approved brand and manufacture to give an even shade  old work ( one or more coats). ","Sqm",14.908461310528928,5500,0,0]
[14,"Removing dry or oil bound distemper, waterprofing cement paint and the like by  by scraping and sand preparing and preparing the surface smooth including necessary repairs to scratches etc. complete.  ","Sqm",3.4218678384665608,3800,0,0]
[15,"Wall  painting  with  plastic  emulsion  paint  of  approved  brand  and manufacture to give an even shade:  one or more coats on old work .                                                                               ","Sqm",15.330410671873063,3500,0,0]
[16,"Painting with synthetic enamel paint of approved brand and manufacture of requird colour to give an even shade one  or more coats on old  work over. ","Sqm",4.0913275352421463,1000,0,0]
[17,"Other Items exept  above items but  as per CPWD DSR 2016   ","item value Rs",2.4967417831013909,30000,{"$f":"ROUND(G24/E24,2)","v":0},0]
["Sub Total Section \"A\"",null,null,null,null,null,{"$f":"SUM(G8:G24)","v":0}]
["Section \"B\""]
["Sl.no.","Descripition of work","Unit","% Allocation (Item-wise)","Qty.","Rate ","Amount (Rs.)"]
[18,"White washing with lime approved brand / quality to give an even shade on vertical AC sheet (height 4 meter to 20 meter) one or more coat including removing and cleaning of webs .","Sqm",2.6446636481684394,3000,{"$f":"ROUND(G28/E28,2)","v":0},{"$f":"ROUND($G$34*D28%,2)","v":0}]
[19,"Extra for providing and mixing FEVICOL-DDL (or equvalent approved by engineer in charge ) 250 gram per 5 kg Lime (approx) must be mixed for adhesive. Empty container of fevicol  and CISF gate entry gate must be submitted by contractor for proof. ","kg",0.84554528728729939,60,{"$f":"ROUND(G29/E29,2)","v":0},{"$f":"ROUND($G$34*D29%,2)","v":0}]
[20,"Finishing walls with water proofing cement paint of required shade of super snowcem or eqivalent as approved by engineer incharge  on old work (one or more coats).","Sqm",1.2277016747147276,850,0,0]
[21,"Colour washing such as green, blue or buff to give an even shade Old  work  (one  or  more  coats) ","Sqm",1.5912806696606712,4500,0,0]
[22,"Painting (one or more coats) on fire fighting pipe line of any dia (100 MM to 200 MM dia) synthetic enamel paint of approved brand and manufacture and required colours on old work.","R/M",9.7344540496143406,1000,0,0]
["Sub Total Section \"B\"",null,null,null,null,null,{"$f":"SUM(G28:G32)","v":0}]
["Amount should be qouted by Contractor"]
["In words",{"$f":"rup(G34)","v":0}]
[]
["Note:","GST Shall be paid Extra As applicable. "]
[null,"1. Bidder has to quote rate in above unlocked cell (G34)only and take print out to submitt along with Tech bid. Item rate shall be calculated automatically. Calculated item rates upto four decimal points may be adjusted w.r.t. gross total amount and it shall be the itemwise final rate for  execution of contract and all other purposes."]
[null,"2. Quoted gross total amount should be considered only if quoted in this excel sheet and print out of this should only be considered for evaluation.  If Price is quoted in any other format other than the Excel Sheet enclosed to the NIT , the offer of the bidder  will be rejected"]
[]
[null,null,null,null,"(Signature and Seal of  Contractor  )"]